lending/lending_fUSD_20250501
["ID","MTS","AMOUNT","RATE_DAILY","PERIOD"]
[359565642,1746126632476,-300.0,0.00024441,2]
[359565643,1746126632485,-1200.0,0.00024441,2]
[359565644,1746126632494,-300.0,0.00024441,2]
[359565645,1746126632504,-1206.0,0.00024442,2]
[359565646,1746126632513,-797.0,0.00024442,2]
[359565647,1746126632523,-580.0,0.00024442,2]
[359565648,1746126632532,-913.0,0.00024442,2]
[359565649,1746126632541,-2070.0,0.00024442,2]
[359565650,1746126632550,-549.0,0.00024442,2]
[359565651,1746126632560,-1449.0,0.00024442,2]
[359565652,1746126632569,-182.38608289,0.00024442,2]
[359565654,1746126632579,-250.0,0.00025288,2]
[359565655,1746126632589,-200.0,0.00025288,2]
[359565656,1746126632599,-250.0,0.0002579,2]
[359565657,1746126632608,-200.0,0.0002579,2]
[359565658,1746126632618,-200.0,0.0002579,2]
[359565659,1746126632627,-345.90850233,0.00026231,2]
[359565660,1746126632638,-153.0,0.00026443,2]
[359565661,1746126632647,-639.80581786,0.00026443,2]
[359565662,1746126632659,-556.26072989,0.00026443,2]
[359565663,1746126632690,-1231.85132041,0.00026443,2]
[359565664,1746126632701,-578.59140228,0.00026443,2]
[359565665,1746126632712,-996.49072956,0.00026443,2]
[359565666,1746126632722,-279.18,0.00026443,2]
[359565667,1746126632732,-6189.0,0.00026443,2]
[359565668,1746126632742,-420.0,0.00026493,2]
[359565669,1746126632751,-420.0,0.00026493,2]
[359565670,1746126632761,-1680.0,0.00026613,2]
[359565671,1746126632772,-1206.0,0.00027442,2]
[359565672,1746126632782,-797.0,0.00027442,2]
[359565673,1746126632792,-579.0,0.00027442,2]
[359565674,1746126632801,-912.0,0.00027442,2]
[359565675,1746126632811,-318.891,0.00027442,2]
[359565676,1746126632821,-548.0,0.00027442,2]
[359565678,1746126632830,-1449.0,0.00027442,2]
[359565680,1746126632839,-4153.24,0.00027442,2]
[359565681,1746126632848,-8051.49991152,0.00027442,2]
[359565684,1746126632859,-383.12875825,0.00027442,2]
[359565686,1746126632870,-4297.54566169,0.00027442,2]
[359565688,1746126632882,-3021.41566854,0.00027442,2]
[359565690,1746126632892,-345.90850233,0.00028617,2]
[359565691,1746126632903,-587.0,0.00028717,2]
[359565693,1746126632912,-180.0,0.00028717,2]
[359565695,1746126632921,-760.0,0.00028979,2]
[359565697,1746126632931,-735.183,0.00029443,2]
[359565700,1746126632944,-1.7124925,0.00029659,2]
[359565702,1746126632963,-883.52301328,0.00029659,2]
[359565704,1746126632974,-423.37755089,0.00029659,2]
[359565707,1746126632989,-415.87469936,0.00029659,2]
[359565709,1746126633005,-6743.49224397,0.00029659,2]
[359565711,1746126633014,-179.51,0.00029797,2]
[359565713,1746126633023,-718.88,0.00029939,2]
[359565715,1746126633033,-500.0,0.0002997,2]
[359565717,1746126633043,-880.32118903,0.0002997,2]
[359565719,1746126633052,-1500.0,0.0002997,2]
[359565721,1746126633062,-500.0,0.0002997,2]
[359565722,1746126633073,-1000.0,0.0002997,2]
[359565724,1746126633082,-1566.69,0.0003,2]
[359565726,1746126633092,-1060.844,0.00030442,2]
[359565728,1746126633101,-797.0,0.00030442,2]
[359565730,1746126633111,-1449.0,0.00030442,2]
[359565732,1746126633120,-160.0,0.000309,34]
[359565734,1746126633131,-500.0,0.0003127,2]
[359565736,1746126633141,-1000.0,0.0003127,2]
[359565738,1746126633151,-1000.0,0.00031568,2]
[359565740,1746126633161,-207.4,0.00031685,2]
[359565742,1746126633171,-250.0,0.00031846,2]
[359565744,1746126633180,-160.0,0.000319,37]
[359565746,1746126633190,-300.0,0.00032018,2]
[359565748,1746126633199,-158.04,0.0003203,30]
[359565749,1746126633208,-1038.01081046,0.00032144,2]
[359565751,1746126633218,-718.88,0.00032203,2]
[359565753,1746126633228,-253.96,0.00032218,2]
[359565755,1746126633237,-1000.0,0.00032382,2]
[359565756,1746126633246,-6839.87,0.00032622,2]
[359565758,1746126633256,-1110.98,0.00032763,2]
[359565787,1746126633530,-176.59,0.00032877,30]
[359565789,1746126633547,-160.0,0.000329,40]
[359565791,1746126633557,-411.35,0.00032952,2]
[359565792,1746126633567,-200.0,0.00033004,2]
[359565793,1746126633577,-150.0,0.0003303,2]
[359565795,1746126633587,-215.0738,0.00033054,2]
[359565797,1746126633597,-164.16,0.00033208,2]
[359565799,1746126633606,-797.0,0.00033442,2]
[359565800,1746126633615,-1444.0,0.00033442,2]
[359565801,1746126633625,-253.96,0.00033829,2]
[359565802,1746126633634,-160.0,0.000339,43]
[359565803,1746126633645,-150.0,0.00033912,2]
[359565804,1746126633655,-163.69,0.00033941,2]
[359565805,1746126633667,-554.972,0.00034015,37]
[359565806,1746126633676,-9033.05666523,0.00034322,2]
[359565807,1746126633693,-11784.51333477,0.00034322,2]
[359565808,1746126633703,-152.0,0.00034414,3]
[359565809,1746126633713,-223.0315306,0.00034423,2]
[359565810,1746126633723,-718.88,0.00034467,2]
[359565811,1746126633733,-179.78354746,0.00034548,4]
[359565812,1746126633745,-679.28295334,0.00034548,4]
[359565813,1746126633755,-802.1029492,0.00034609,2]
[359565814,1746126633765,-150.0,0.00034678,2]
[359565815,1746126633775,-3134.5953,0.00034696,2]
[359565816,1746126633786,-1000.0,0.00034795,2]
[359565817,1746126633796,-150.0,0.00034795,2]
[359565818,1746126633806,-1701.37830944,0.00034796,5]
[359565819,1746126633815,-802.1029492,0.00034899,2]
[359565820,1746126633826,-160.0,0.000349,46]
[359565821,1746126633835,-802.1029492,0.00035111,2]
[359565822,1746126633845,-1132.31460781,0.00035172,5]
[359565823,1746126633855,-1229.59,0.00035194,5]
[359565824,1746126633865,-2921.68791325,0.00035323,2]
[359565831,1746126638119,-1138.0,0.00023443,2]
[359565832,1746126638129,-1134.0,0.00026443,2]
[359565833,1746126638139,-1410.02,0.0003,2]
[359565834,1746126638148,-279.033,0.00034099,2]
[359565835,1746126638157,-11827.27425628,0.00035323,2]
[359565836,1746126638167,-1650.0,0.000354,5]
[359565837,1746126638177,-30000.0,0.000354,2]
[359565838,1746126638187,-14748.96216949,0.00035436,2]
[359565839,1746126638197,-253.96,0.0003544,2]
[359565840,1746126638208,-1000.0,0.00035503,2]
[359565841,1746126638218,-767.157,0.00035506,2]
[359565842,1746126638229,-174.07461068,0.00035506,15]
[359565843,1746126638238,-5860.28146517,0.00035506,2]
[359565844,1746126638247,-802.1029492,0.00035515,2]
[359565845,1746126638258,-28835.3961,0.00035516,2]
[359565846,1746126638268,-456.2809232,0.00035516,2]
[359565847,1746126638278,-14748.96216949,0.00035549,2]
[359565848,1746126638287,-500.0,0.0003557,2]
[359565849,1746126638297,-1000.0,0.0003557,2]
[359565850,1746126638307,-465.98585206,0.00035595,7]
[359565851,1746126638316,-500.0,0.00035595,7]
[359565852,1746126638325,-378.65551375,0.00035595,7]
[359565853,1746126638335,-359.0836222,0.00035595,7]
[359565854,1746126638344,-24117.958141,0.00035596,2]
[359565855,1746126638353,-154.62,0.00035596,2]
[359565856,1746126638362,-15162.35993202,0.00035597,5]
[359565857,1746126638372,-5860.28146508,0.00035598,2]
[359565858,1746126638381,-2500.0,0.000356,5]
[359565859,1746126638391,-250.0,0.000356,2]
[359565860,1746126638400,-361539.90494574,0.00035606,2]
[359565861,1746126638413,-26536.75640405,0.00035606,2]
[359565862,1746126638425,-70164.54333021,0.00035606,2]
[359565863,1746126638434,-1250.97450213,0.00035606,2]
[359565864,1746126638446,-346.2402396,0.00035606,2]
[359565867,1746126638461,-1755.58771542,0.00035606,2]
[359565869,1746126638472,-349.03655998,0.00035606,2]
[359565871,1746126638483,-3057.374,0.00035606,2]
[359565876,1746126638533,-1312.52831791,0.00035606,2]
[359565878,1746126638546,-534.82997,0.00035606,2]
[359565895,1746126638679,-23408.92423512,0.00035606,2]
[359565897,1746126638690,-8431.1612707,0.00035606,2]
[359565899,1746126638701,-1499.8,0.00035606,2]
[359565901,1746126638712,-519.750011,0.00035606,2]
[359565903,1746126638723,-922.34510238,0.00035606,2]
[359565905,1746126638734,-303709.15639776,0.00035606,2]
[359565907,1746126638743,-262.23970625,0.00035606,2]
[359565909,1746126638752,-151.0,0.00035606,2]
[359565911,1746126638761,-243.57854705,0.00035606,2]
[359565913,1746126638771,-319.97,0.00035615,2]
[359565915,1746126638781,-466.0,0.00035616,5]
[359565917,1746126638792,-1252.27,0.00035616,5]
[359565919,1746126638801,-1232.33,0.00035616,5]
[359565921,1746126638811,-984.61165888,0.00035616,2]
[359565923,1746126638820,-450.0,0.00035616,11]
[359565925,1746126638830,-530.0,0.00035616,11]
[359565927,1746126638840,-392.66888726,0.00035616,11]
[359565929,1746126638850,-327.93539322,0.00035616,11]
[359565931,1746126638859,-450.0,0.00035616,11]
[359565933,1746126638868,-206.95380582,0.00035616,11]
[359565935,1746126638878,-450.0,0.00035616,11]
[359565937,1746126638888,-450.0,0.00035616,11]
[359565939,1746126638897,-450.0,0.00035616,11]
[359565941,1746126638906,-450.0,0.00035616,11]
[359565943,1746126638916,-450.0,0.00035616,11]
[359565945,1746126638925,-450.0,0.00035616,11]
[359565947,1746126638934,-450.0,0.00035616,11]
[359565949,1746126638943,-450.0,0.00035616,11]
[359565951,1746126638952,-450.0,0.00035616,11]
[359565953,1746126638961,-450.0,0.00035616,11]
[359565955,1746126638970,-450.0,0.00035616,11]
[359565957,1746126638980,-450.0,0.00035616,11]
[359565959,1746126638989,-450.0,0.00035616,11]
[359565961,1746126639000,-450.0,0.00035616,11]
[359565963,1746126639009,-232.96644181,0.00035616,11]
[359565965,1746126639019,-470.0,0.00035616,11]
[359565967,1746126639028,-1675.08,0.00035616,11]
[359565969,1746126639040,-450.0,0.00035616,11]
[359565970,1746126639052,-450.0,0.00035616,11]
[359565973,1746126639062,-450.0,0.00035616,11]
[359565974,1746126639072,-450.0,0.00035616,11]
[359565976,1746126639082,-470.0,0.00035616,11]
[359565979,1746126639092,-263.31239276,0.00035616,11]
[359565981,1746126639103,-390.15348986,0.00035616,11]
[359565982,1746126639114,-450.0,0.00035616,11]
[359565984,1746126639123,-470.0,0.00035616,11]
[359565986,1746126639132,-450.0,0.00035616,11]
[359565988,1746126639142,-334.43553343,0.00035616,11]
[359565990,1746126639151,-1186.47,0.00035616,11]
[359565992,1746126639160,-450.0,0.00035616,11]
[359565994,1746126639169,-450.0,0.00035616,11]
[359565996,1746126639179,-533.03,0.00035616,11]
[359565998,1746126639188,-450.0,0.00035616,11]
[359566000,1746126639198,-500.0,0.00035616,11]
[359566002,1746126639207,-450.0,0.00035616,11]
[359566004,1746126639217,-573.61991999,0.00035616,11]
[359566006,1746126639226,-245.44784426,0.00035616,11]
[359566008,1746126639236,-450.0,0.00035616,11]
[359566010,1746126639246,-450.0,0.00035616,11]
[359566012,1746126639256,-450.0,0.00035616,11]
[359566014,1746126639266,-635.69,0.00035616,11]
[359566016,1746126639276,-474.46,0.00035616,11]
[359566018,1746126639285,-450.0,0.00035616,11]
[359566020,1746126639295,-450.0,0.00035616,11]
[359566021,1746126639304,-709.86,0.00035616,11]
[359566022,1746126639313,-450.0,0.00035616,11]
[359566023,1746126639323,-450.0,0.00035616,11]
[359566024,1746126639331,-1045.87,0.00035616,11]
[359566025,1746126639340,-500.0,0.00035616,11]
[359566026,1746126639349,-450.0,0.00035616,11]
[359566027,1746126639358,-541.26149482,0.00035616,11]
[359566028,1746126639367,-450.0,0.00035616,11]
[359566029,1746126639376,-473.65,0.00035616,11]
[359566030,1746126639385,-450.0,0.00035616,11]
[359566031,1746126639394,-450.0,0.00035616,11]
[359566032,1746126639403,-363.39769984,0.00035616,11]
[359566033,1746126639412,-450.0,0.00035616,11]
[359566034,1746126639421,-748.78,0.00035616,11]
[359566035,1746126639431,-500.0,0.00035616,11]
[359566036,1746126639440,-595.71,0.00035616,11]
[359566037,1746126639450,-450.0,0.00035616,11]
[359566038,1746126639459,-450.0,0.00035616,11]
[359566039,1746126639468,-450.0,0.00035616,11]
[359566040,1746126639477,-1253.573309,0.00035616,11]
[359566041,1746126639486,-562.26,0.00035616,11]
[359566042,1746126639496,-641.31,0.00035616,11]
[359566043,1746126639505,-450.0,0.00035616,11]
[359566045,1746126639514,-517.88,0.00035616,11]
[359566046,1746126639523,-536.0370058,0.00035616,11]
[359566048,1746126639533,-186.99218392,0.00035616,11]
[359566050,1746126639542,-198.69351155,0.00035616,11]
[359566052,1746126639551,-470.0,0.00035616,11]
[359566054,1746126639561,-470.0,0.00035616,7]
[359566056,1746126639572,-1190.07,0.00035616,11]
[359566058,1746126639581,-470.0,0.00035616,11]
[359566060,1746126639591,-405.25248599,0.00035616,11]
[359566062,1746126639600,-450.0,0.00035616,11]
[359566064,1746126639609,-450.0,0.00035616,11]
[359566066,1746126639618,-470.0,0.00035616,11]
[359566068,1746126639627,-682.15,0.00035616,11]
[359566070,1746126639637,-533.01,0.00035616,11]
[359566072,1746126639649,-2348.31,0.00035616,11]
[359566074,1746126639659,-450.0,0.00035616,11]
[359566076,1746126639668,-470.0,0.00035616,11]
[359566078,1746126639678,-450.0,0.00035616,11]
[359566080,1746126639687,-450.0,0.00035616,11]
[359566082,1746126639696,-585.52753006,0.00035616,11]
[359566084,1746126639705,-450.0,0.00035616,11]
[359566086,1746126639714,-450.0,0.00035616,11]
[359566088,1746126639723,-450.0,0.00035616,11]
[359566090,1746126639733,-586.53,0.00035616,11]
[359566092,1746126639742,-450.0,0.00035616,11]
[359566094,1746126639751,-502.47253425,0.00035616,11]
[359566095,1746126639759,-1298.14,0.00035616,11]
[359566097,1746126639769,-450.0,0.00035616,11]
[359566099,1746126639779,-450.0,0.00035616,11]
[359566101,1746126639788,-450.0,0.00035616,11]
[359566103,1746126639798,-450.0,0.00035616,11]
[359566105,1746126639807,-450.0,0.00035616,11]
[359566107,1746126639816,-502.18435207,0.00035616,11]
[359566109,1746126639826,-450.0,0.00035616,11]
[359566111,1746126639835,-462.37,0.00035616,11]
[359566113,1746126639844,-450.0,0.00035616,11]
[359566115,1746126639854,-195.40960587,0.00035616,11]
[359566117,1746126639864,-450.0,0.00035616,11]
[359566119,1746126639873,-544.15,0.00035616,11]
[359566121,1746126639882,-505.7296571,0.00035616,11]
[359566123,1746126639892,-450.0,0.00035616,11]
[359566125,1746126639901,-647.87,0.00035616,11]
[359566128,1746126639911,-450.0,0.00035616,7]
[359566130,1746126639921,-580.79,0.00035616,11]
[359566133,1746126639930,-450.0,0.00035616,11]
[359566135,1746126639939,-222.78310583,0.00035616,11]
[359566137,1746126639949,-533.45276428,0.00035616,11]
[359566139,1746126639959,-450.0,0.00035616,11]
[359566141,1746126639969,-728.88,0.00035616,11]
[359566143,1746126639978,-481.86051582,0.00035616,11]
[359566145,1746126639988,-450.0,0.00035616,11]
[359566147,1746126639999,-450.0,0.00035616,11]
[359566149,1746126640009,-1283.55,0.00035616,11]
[359566151,1746126640018,-450.0,0.00035616,11]
[359566153,1746126640028,-450.0,0.00035616,11]
[359566155,1746126640039,-277.53859771,0.00035616,11]
[359566157,1746126640048,-450.0,0.00035616,11]
[359566159,1746126640058,-462.39,0.00035616,11]
[359566161,1746126640068,-450.0,0.00035616,11]
[359566163,1746126640080,-450.0,0.00035616,11]
[359566165,1746126640090,-450.0,0.00035616,11]
[359566167,1746126640099,-450.0,0.00035616,2]
[359566169,1746126640108,-983.64,0.00035616,11]
[359566171,1746126640118,-536.34,0.00035616,11]
[359566173,1746126640128,-450.0,0.00035616,11]
[359566175,1746126640137,-1410.2,0.00035616,11]
[359566177,1746126640147,-450.0,0.00035616,11]
[359566179,1746126640156,-450.0,0.00035616,11]
[359566181,1746126640166,-502.73931556,0.00035616,11]
[359566183,1746126640176,-760.41,0.00035616,11]
[359566187,1746126640185,-450.0,0.00035616,11]
[359566189,1746126640195,-450.0,0.00035616,11]
[359566192,1746126640204,-559.77,0.00035616,11]
[359566194,1746126640213,-450.0,0.00035616,11]
[359566196,1746126640223,-567.58,0.00035616,11]
[359566198,1746126640233,-504.28,0.00035616,2]
[359566200,1746126640243,-450.0,0.00035616,11]
[359566202,1746126640252,-724.03,0.00035616,11]
[359566204,1746126640262,-450.0,0.00035616,11]
[359566206,1746126640271,-809.59,0.00035616,11]
[359566208,1746126640282,-450.0,0.00035616,11]
[359566210,1746126640292,-450.0,0.00035616,11]
[359566212,1746126640302,-450.0,0.00035616,11]
[359566214,1746126640311,-456.52,0.00035616,11]
[359566216,1746126640324,-450.0,0.00035616,11]
[359566218,1746126640334,-450.0,0.00035616,11]
[359566220,1746126640343,-450.0,0.00035616,2]
[359566222,1746126640353,-1015.74,0.00035616,11]
[359566225,1746126640363,-450.0,0.00035616,11]
[359566227,1746126640373,-450.0,0.00035616,11]
[359566228,1746126640383,-500.0,0.00035616,11]
[359566230,1746126640392,-450.68367778,0.00035616,11]
[359566232,1746126640402,-450.0,0.00035616,11]
[359566234,1746126640412,-450.0,0.00035616,11]
[359566237,1746126640423,-2371.99,0.00035616,11]
[359566238,1746126640435,-1207.07,0.00035616,11]
[359566240,1746126640444,-450.0,0.00035616,11]
[359566242,1746126640453,-450.0,0.00035616,11]
[359566244,1746126640463,-450.0,0.00035616,11]
[359566246,1746126640472,-918.32,0.00035616,11]
[359566248,1746126640481,-189.31114872,0.00035616,11]
[359566250,1746126640491,-450.0,0.00035616,11]
[359566252,1746126640500,-450.0,0.00035616,11]
[359566254,1746126640511,-450.0,0.00035616,11]
[359566256,1746126640521,-524.41,0.00035616,11]
[359566258,1746126640530,-204.59521059,0.00035616,11]
[359566260,1746126640539,-605.3,0.00035616,11]
[359566262,1746126640549,-450.0,0.00035616,11]
[359566264,1746126640559,-1115.85,0.00035616,11]
[359566265,1746126640568,-450.0,0.00035616,11]
[359566267,1746126640577,-485.91265479,0.00035616,11]
[359566269,1746126640588,-1365.33,0.00035616,11]
[359566270,1746126640598,-361.25458552,0.00035616,11]
[359566271,1746126640607,-1122.77,0.00035616,11]
[359566272,1746126640617,-529.69,0.00035616,11]
[359566273,1746126640627,-450.0,0.00035616,11]
[359566274,1746126640637,-870.43,0.00035616,11]
[359566275,1746126640649,-450.0,0.00035616,11]
[359566276,1746126640659,-450.0,0.00035616,11]
[359566277,1746126640669,-450.0,0.00035616,11]
[359566278,1746126640679,-450.0,0.00035616,11]
[359566279,1746126640689,-517.93,0.00035616,11]
[359566280,1746126640699,-290.41,0.00035616,11]
[359566281,1746126640709,-572.63,0.00035616,11]
[359566282,1746126640719,-450.0,0.00035616,11]
[359566283,1746126640729,-450.0,0.00035616,11]
[359566284,1746126640739,-382.0858766,0.00035616,11]
[359566285,1746126640749,-544.49,0.00035616,11]
[359566286,1746126640759,-1031.43,0.00035616,11]
[359566287,1746126640769,-564.93,0.00035616,11]
[359566288,1746126640779,-450.0,0.00035616,11]
[359566289,1746126640789,-450.0,0.00035616,11]
[359566293,1746126641076,-450.0,0.00035616,11]
[359566295,1746126641135,-477.16,0.00035616,11]
[359566296,1746126641145,-1157.31,0.00035616,11]
[359566297,1746126641155,-450.0,0.00035616,11]
[359566298,1746126641164,-453.88,0.00035616,11]
[359566299,1746126641174,-784.52,0.00035616,11]
[359566300,1746126641183,-450.0,0.00035616,11]
[359566301,1746126641192,-450.0,0.00035616,11]
[359566302,1746126641202,-450.0,0.00035616,11]
[359566303,1746126641211,-450.0,0.00035616,11]
[359566304,1746126641220,-500.0,0.00035616,11]
[359566305,1746126641230,-2045.26,0.00035616,11]
[359566306,1746126641239,-450.0,0.00035616,11]
[359566307,1746126641249,-1006.71,0.00035616,120]
[359566308,1746126641259,-450.0,0.00035616,11]
[359566309,1746126641269,-450.0,0.00035616,11]
[359566310,1746126641278,-1028.02,0.00035616,11]
[359566311,1746126641288,-450.0,0.00035616,11]
[359566312,1746126641297,-450.0,0.00035616,11]
[359566313,1746126641307,-816.47,0.00035616,11]
[359566314,1746126641316,-1669.19,0.00035616,11]
[359566315,1746126641327,-450.0,0.00035616,11]
[359566316,1746126641339,-752.34,0.00035616,11]
[359566317,1746126641348,-450.0,0.00035616,11]
[359566318,1746126641358,-450.0,0.00035616,11]
[359566319,1746126641367,-326.3273888,0.00035616,11]
[359566320,1746126641377,-645.91,0.00035616,11]
[359566321,1746126641386,-450.0,0.00035616,11]
[359566322,1746126641395,-523.77,0.00035616,11]
[359566323,1746126641405,-611.54,0.00035616,11]
[359566324,1746126641414,-1165.04,0.00035616,11]
[359566325,1746126641424,-450.0,0.00035616,11]
[359566326,1746126641433,-450.0,0.00035616,11]
[359566327,1746126641444,-450.0,0.00035616,11]
[359566328,1746126641455,-450.0,0.00035616,7]
[359566329,1746126641465,-450.0,0.00035616,11]
[359566330,1746126641475,-889.67,0.00035616,11]
[359566331,1746126641484,-450.0,0.00035616,11]
[359566332,1746126641494,-450.0,0.00035616,11]
[359566333,1746126641503,-450.0,0.00035616,11]
[359566334,1746126641513,-450.0,0.00035616,11]
[359566335,1746126641522,-970.07,0.00035616,11]
[359566336,1746126641532,-648.06,0.00035616,11]
[359566337,1746126641542,-450.0,0.00035616,11]
[359566338,1746126641551,-450.0,0.00035616,11]
[359566339,1746126641561,-450.0,0.00035616,11]
[359566340,1746126641571,-1220.0,0.00035616,11]
[359566341,1746126641580,-450.0,0.00035616,11]
[359566342,1746126641591,-450.0,0.00035616,11]
[359566343,1746126641601,-450.0,0.00035616,11]
[359566344,1746126641610,-450.0,0.00035616,11]
[359566345,1746126641620,-1081.64,0.00035616,11]
[359566346,1746126641629,-1110.43,0.00035616,11]
[359566347,1746126641639,-564.32,0.00035616,11]
[359566348,1746126641648,-450.0,0.00035616,11]
[359566349,1746126641658,-512.11,0.00035616,11]
[359566350,1746126641668,-450.0,0.00035616,11]
[359566351,1746126641677,-450.0,0.00035616,11]
[359566352,1746126641686,-450.0,0.00035616,11]
[359566353,1746126641696,-450.0,0.00035616,11]
[359566354,1746126641705,-476.18,0.00035616,11]
[359566355,1746126641715,-688.33,0.00035616,11]
[359566356,1746126641725,-450.0,0.00035616,11]
[359566357,1746126641734,-450.0,0.00035616,11]
[359566358,1746126641744,-450.0,0.00035616,11]
[359566359,1746126641753,-1183.97,0.00035616,11]
[359566360,1746126641763,-450.0,0.00035616,11]
[359566361,1746126641772,-450.0,0.00035616,11]
[359566362,1746126641783,-450.0,0.00035616,11]
[359566363,1746126641792,-450.0,0.00035616,11]
[359566364,1746126641802,-1638.50192678,0.00035616,11]
[359566365,1746126641889,-26.67807322,0.00035616,11]
[359566366,1746126641899,-411.09170428,0.00035616,11]
[359566367,1746126641909,-162.2302225,0.00035616,11]
[359566368,1746126641921,-696.6597775,0.00035616,11]
[359566369,1746126641931,-450.0,0.00035616,11]
[359566370,1746126641941,-500.0,0.00035616,11]
[359566371,1746126641950,-500.0,0.00035616,11]
[359566372,1746126641961,-500.0,0.00035616,11]
[359566373,1746126641970,-500.0,0.00035616,11]
[359566374,1746126641980,-65.52372825,0.00035616,11]
[359566375,1746126642268,-434.47627175,0.00035616,11]
[359566376,1746126642278,-500.0,0.00035616,11]
[359566377,1746126642287,-1643.95,0.00035616,11]
[359566378,1746126642298,-500.0,0.00035616,11]
[359566379,1746126642307,-364.89214831,0.00035616,11]
[359566380,1746126642317,-450.0,0.00035616,11]
[359566381,1746126642326,-500.0,0.00035616,11]
[359566382,1746126642337,-450.0,0.00035616,7]
[359566383,1746126642346,-156.68157994,0.00035616,11]
[359566384,1746126642830,-293.31842006,0.00035616,11]
[359566385,1746126642841,-176.68157994,0.00035616,11]
[359566386,1746126642880,-273.31842006,0.00035616,11]
[359566387,1746126642890,-702.8,0.00035616,11]
[359566388,1746126642899,-524.19,0.00035616,11]
[359566389,1746126642909,-450.0,0.00035616,11]
[359566390,1746126642918,-479.44,0.00035616,11]
[359566392,1746126642927,-500.0,0.00035616,11]
[359566393,1746126642937,-804.33,0.00035616,11]
[359566394,1746126642945,-450.0,0.00035616,11]
[359566395,1746126642955,-450.0,0.00035616,11]
[359566396,1746126642964,-195.21889603,0.00035616,11]
[359566397,1746126642973,-450.0,0.00035616,11]
[359566399,1746126642982,-451.33410537,0.00035616,11]
[359566400,1746126642994,-37.04589463,0.00035616,11]
[359566401,1746126643006,-444.97176259,0.00035616,11]
[359566402,1746126643015,-231.9583643,0.00035616,11]
[359566403,1746126643027,-871.2016357,0.00035616,11]
[359566404,1746126643036,-178.21255435,0.00035616,11]
[359566405,1746126643051,-271.78744565,0.00035616,11]
[359566406,1746126643060,-450.0,0.00035616,11]
[359566407,1746126643070,-615.48,0.00035616,11]
[359566408,1746126643081,-348.50377339,0.00035616,11]
[359566409,1746126643093,-1007.52312096,0.00035616,11]
[359566410,1746126643105,-848.40310565,0.00035616,11]
[359566411,1746126643116,-948.31,0.00035616,11]
[359566412,1746126643126,-450.0,0.00035616,11]
[359566413,1746126643136,-450.0,0.00035616,11]
[359566414,1746126643145,-450.0,0.00035616,11]
[359566415,1746126643154,-450.0,0.00035616,11]
[359566416,1746126643164,-450.0,0.00035616,11]
[359566417,1746126643174,-450.0,0.00035616,11]
[359566419,1746126643183,-450.0,0.00035616,11]
[359566420,1746126643193,-503.6343988,0.00035616,11]
[359566422,1746126643205,-494.6256012,0.00035616,11]
[359566424,1746126643215,-500.0,0.00035616,11]
[359566426,1746126643224,-500.0,0.00035616,11]
[359566428,1746126643234,-500.0,0.00035616,11]
[359566430,1746126643244,-330.3743993,0.00035616,11]
[359566432,1746126643255,-169.6256007,0.00035616,11]
[359566434,1746126643264,-300.3743993,0.00035616,11]
[359566436,1746126643275,-199.6256007,0.00035616,11]
[359566438,1746126643285,-215.05827797,0.00035616,11]